Cogmind - Beta 9.4 @@@ ROGUE MODE // 2020.03.11 @ 11:45:19 Player: Sudoku Result: Self-destructed Performance ------------- Evolutions (2) 1000 Regions Visited (6) 1200 Robots Destroyed (41) 205 Value Destroyed (856) 856 Prototype IDs (1) 20 Alien Tech Used (0) 0 Bonus (0) 0 TOTAL SCORE: 3281 Bonus ------- None Cogmind --------- Core Integrity 34/550 Matter 184/300 Energy 69/100 System Corruption 0% Temperature Cool (0) Movement Core (50) Location -8/Materials Parts ------- > --- POWER (2) -------- (None) > --- PROPULSION (4) --- (None) > --- UTILITY (3) ------ Signal Interpreter Advanced Signal Interpreter System Shield > --- WEAPON (2) ------- Light Assault Rifle Light Assault Rifle > --- INVENTORY (4) ---- Cesium-ion Thruster Improved ECM Suite Peak State ------------ > --- POWER ------------ Light Ion Engine Light Ion Engine > --- PROPULSION ------- Carbon-fiber Leg Carbon-fiber Leg Flight Unit Flight Unit > --- UTILITY ---------- Large Storage Unit Signal Interpreter Advanced Signal Interpreter > --- WEAPON ----------- Heavy EM Pulse Gun Pulse Rifle > --- INVENTORY -------- Flight Unit Flight Unit Flight Unit Flight Unit High-capacity Matter Pod Hardlight Generator System Shield Grenade Launcher [Rating: 21] Favorites ----------- Power Ion Engine Engine Ion Engine Propulsion Aluminum Leg Leg Aluminum Leg Flight Unit Flight Unit Utility Signal Interpreter Device Improved Sensor Array Storage Large Storage Unit Processor Signal Interpreter Hackware Hacking Suite Weapon Light Assault Rifle Energy Gun Particle Gun Ballistic Gun Light Assault Rifle Launcher Grenade Launcher Build | -11 -10 -9 -9 -9 -8 -8 ------- Run | Scr Mat Mat Min Exi Min Mat Slots Evolved 4 | . . 2 . . . 2 Power 1 | . . . . . . 1 Propulsion 2 | . . 1 . . . 1 Utility 1 | . . 1 . . . . Weapon . | . . . . . . . Parts Attached 56 | 7 5 9 1 . 14 20 Power 7 | 1 1 1 . . 1 3 Engine 7 | 1 1 1 . . 1 3 Core . | . . . . . . . Reactor . | . . . . . . . Propulsion 20 | 2 2 3 . . 6 7 Treads . | . . . . . . . Leg 9 | 2 2 3 . . 2 . Wheel . | . . . . . . . Hover . | . . . . . . . Flight 11 | . . . . . 4 7 Utility 11 | 2 . 4 . . 3 2 Device 2 | . . 1 . . 1 . Storage 5 | 2 . 2 . . 1 . Processor 2 | . . 1 . . 1 . Hackware 2 | . . . . . . 2 Protection . | . . . . . . . Artifact . | . . . . . . . Weapon 18 | 2 2 1 1 . 4 8 Energy Gun 7 | . 2 . . . 2 3 Energy Cannon . | . . . . . . . Ballistic Gun 8 | 2 . 1 1 . 1 3 Ballistic Cannon . | . . . . . . . Launcher 3 | . . . . . 1 2 Special Weapon . | . . . . . . . Impact Weapon . | . . . . . . . Slashing Weapon . | . . . . . . . Piercing Weapon . | . . . . . . . Special Melee Weapon . | . . . . . . . Unidentified Prototypes 1 | . . . . . . 1 Parts Lost 28 | . . 1 . . 8 19 Power 5 | . . . . . 1 4 Propulsion 11 | . . . . . 3 8 Utility 2 | . . . . . 1 1 Weapon 10 | . . 1 . . 3 6 Highest Loss Streak 19 | . . 1 . . 8 19 Average Slot Usage (%) 89 | . 99 89 100 100 83 66 Engine 10 | . 14 11 11 11 9 9 Leg 23 | . 28 23 33 33 21 . Flight 4 | . . . . . 6 24 Device 6 | . . 11 11 11 8 . Storage 14 | . 28 18 11 11 10 . Processor 9 | . . 3 11 11 12 18 Energy Gun 4 | . 6 15 2 . . 9 Ballistic Gun 12 | . 21 5 19 22 6 . Launcher 2 | . . . . . 6 1 Naked Turns . | . . . . . . . Heaviest Build 44 | 17 19 44 26 24 25 13 Greatest Support 30 | 20 20 30 30 30 30 16 Greatest Overweight (x) 6 | . . 2 . . 6 2 Average Overweight (x) . | . . . . . . . Largest Inventory Capacity 16 | 8 8 16 10 10 10 10 Average Capacity 8 | 6 8 11 10 10 9 4 Most Carried 11 | 7 8 11 10 10 10 9 Average Carried 7 | 3 7 9 9 10 8 3 Final Capacity 10 | 8 8 10 10 10 10 4 Final Carried 10 | 7 8 10 10 10 10 2 Class Distribution -------------------- 57% | Scavenger-Mutant 42% | Mutant Dominant Class ---------------- Mutant | -10/Materials Mutant | -9/Materials Scavenger-Mutant | -9/Mines Scavenger-Mutant | -9/Exiles Scavenger-Mutant | -8/Mines Scavenger-Mutant | -8/Materials Resources | -11 -10 -9 -9 -9 -8 -8 ----------- Run | Scr Mat Mat Min Exi Min Mat Matter Collected 942 | 337 194 89 13 . 230 79 Remotely . | . . . . . . . Salvage Created 1127 | 141 246 135 24 . 310 271 Parts 74 | 6 14 11 5 . 21 17 Haulers Intercepted 1 | . . . . . . 1 Recyclers Shooed 5 | 1 2 . . . 2 . Parts Field Recycled . | . . . . . . . Retrieved Matter . | . . . . . . . Parts Self-Destructed . | . . . . . . . Prevented . | . . . . . . . Kills | -11 -10 -9 -9 -9 -8 -8 ------- Run | Scr Mat Mat Min Exi Min Mat Combat Hostiles Destroyed 25 | . 5 5 2 . 5 8 Guns 17 | . 5 5 2 . 3 2 AOE 8 | . . . . . 2 6 Classes Destroyed 10 | 2 3 . . . 1 4 Worker 3 | 2 . . . . 1 . Builder 1 | . . . . . . 1 Tunneler 3 | . . . . . 3 . Hauler 1 | . . . . . . 1 Recycler 4 | 1 1 . . . 2 . Operator 1 | . . . . . . 1 Watcher 3 | . 1 1 . . . 1 Swarmer 12 | . 2 3 2 . 2 3 Grunt 12 | . 3 2 . . 3 4 Brawler 1 | . . . . . . 1 Best Kill Streak 7 | 2 3 3 2 . 6 7 Combat Bots Only 3 | . 2 3 2 . 2 3 Max Kills in Single Turn 3 | 1 1 1 1 . 2 3 Gunslinging . | . . . . . . . Exploded 2 | . . . . . 1 2 Melee . | . . . . . . . Uniques/NPCs Destroyed . | . . . . . . . Combat | -11 -10 -9 -9 -9 -8 -8 -------- Run | Scr Mat Mat Min Exi Min Mat Damage Taken 2701 | . 234 206 8 . 995 1258 Core 844 | . 10 28 . . 290 516 Absorbed by Shields . | . . . . . . . Core Remaining (%) 72 | 100 96 . . . 20 . Volleys Fired 98 | 7 27 14 2 . 36 12 Largest 2 | 2 2 2 2 . 2 2 Hottest 130 | 40 130 130 85 . 40 95 Shots Fired 161 | 14 54 23 4 . 51 15 Gun 145 | 14 54 23 4 . 41 9 Cannon . | . . . . . . . Launcher 16 | . . . . . 10 6 Special . | . . . . . . . Kinetic 110 | 14 48 5 2 . 41 . Thermal 26 | . 6 18 2 . . . Explosive 16 | . . . . . 10 6 Electromagnetic 9 | . . . . . . 9 Robot Hit Streak 20 | 7 14 16 8 . 20 3 Robot Miss Streak 8 | 1 4 2 . . 8 2 Penetration Max . | . . . . . . . Secondary Targets 4 | . 1 1 1 . 1 . Max Gunslinging Chain 1 | . 1 1 1 . 1 . Shots Hit Robots 107 | 9 35 13 3 . 36 11 Core Hits 66 | 4 10 6 3 . 24 19 Critical Hits . | . . . . . . . Critical Kills . | . . . . . . . Critical Parts Destroyed . | . . . . . . . Melee Attacks . | . . . . . . . Impact . | . . . . . . . Slashing . | . . . . . . . Piercing . | . . . . . . . Sneak Attacks . | . . . . . . . Combat Hostiles . | . . . . . . . Follow-up Attacks . | . . . . . . . Damage Inflicted 2623 | 113 422 192 49 . 810 1037 Guns 1083 | 113 422 192 49 . 226 81 Cannons . | . . . . . . . Explosions 1538 | . . . . . 582 956 Melee . | . . . . . . . Ramming 2 | . . . . . 2 . Kinetic 691 | 113 328 10 14 . 226 . Thermal 311 | . 94 182 35 . . . Explosive 1538 | . . . . . 582 956 Electromagnetic 81 | . . . . . . 81 Impact . | . . . . . . . Slashing . | . . . . . . . Piercing . | . . . . . . . Highest Corruption . | . . . . . . . Average Corruption . | . . . . . . . Corruption Purged . | . . . . . . . Overload Shots . | . . . . . . . Overflow Damage 52 | . . . . . 15 37 Projectiles . | . . . . . . . Explosions 52 | . . . . . 15 37 Melee . | . . . . . . . Knockbacks . | . . . . . . . Impact . | . . . . . . . Kinetic . | . . . . . . . Secondary . | . . . . . . . Self-Inflicted Damage 88 | . . . . . 17 71 Shots 3 | . . . . . 2 1 Rammed 3 | . . . . . 3 . Targets Rammed 3 | . . . . . 3 . Kicked . | . . . . . . . Crushed . | . . . . . . . Highest Temperature 330 | . 138 330 53 . 28 71 Average Temperature 69 | . 47 144 28 . 11 30 Received Heat Transfer 906 | . 78 18 . . 468 342 Siege Activations . | . . . . . . . Robots Corrupted . | . . . . . . . Combat Hostiles . | . . . . . . . Parts Fried . | . . . . . . . Impact Corruptions . | . . . . . . . Robots Melted . | . . . . . . . Combat Hostiles . | . . . . . . . Parts Melted . | . . . . . . . Heat Transferred 740 | . 222 444 74 . . . Parts Sabotaged . | . . . . . . . Parts Stolen . | . . . . . . . Parts Stripped . | . . . . . . . Power Chain Reactions . | . . . . . . . Missiles Intercepted . | . . . . . . . Alert | -11 -10 -9 -9 -9 -8 -8 ------- Run | Scr Mat Mat Min Exi Min Mat Peak Influence 241 | 15 161 241 133 . 101 226 Average Influence 62 | 5 66 140 129 . 31 109 Maximum Alert Level 1 | . . 1 . . . 1 Low Security (%) 96 | 100 100 79 100 . 100 93 Level 1 3 | . . 20 . . . 6 Level 2 . | . . . . . . . Level 3 . | . . . . . . . Level 4 . | . . . . . . . Level 5 . | . . . . . . . High Security . | . . . . . . . Max Security . | . . . . . . . Squads Dispatched 5 | . 1 2 . . . 2 Investigation . | . . . . . . . Extermination . | . . . . . . . Reinforcement 5 | . 1 2 . . . 2 Assault . | . . . . . . . Garrison . | . . . . . . . Intercept . | . . . . . . . Construction Impeded 1 | . . . . . . 1 Haulers Reinforced . | . . . . . . . Stealth | -11 -10 -9 -9 -9 -8 -8 --------- Run | Scr Mat Mat Min Exi Min Mat Distress Signals 3 | . . 2 . . . 1 Communications Jammed . | . . . . . . . Distress Signals . | . . . . . . . Times Spotted 54 | . 9 6 3 . 6 30 Peak Tracking Total 11 | . 3 3 3 . 3 11 Tactical Retreats 7 | . 2 . . . . 5 Traps | -11 -10 -9 -9 -9 -8 -8 ------- Run | Scr Mat Mat Min Exi Min Mat Traps Triggered . | . . . . . . . Indirectly . | . . . . . . . Trap Hack Attempts . | . . . . . . . Triggered . | . . . . . . . Disarmed . | . . . . . . . Reprogrammed . | . . . . . . . Reused . | . . . . . . . Traps Extracted . | . . . . . . . Installed . | . . . . . . . Triggered . | . . . . . . . Machines | -11 -10 -9 -9 -9 -8 -8 ---------- Run | Scr Mat Mat Min Exi Min Mat Machines Disabled 7 | . . . . . . 7 Max in Single Turn 3 | . . . . . . 3 Machines Sabotaged . | . . . . . . . Garrisons Compromised . | . . . . . . . Overloaded Fab Kills . | . . . . . . . Fab Network Shutdowns . | . . . . . . . Hacking | -11 -10 -9 -9 -9 -8 -8 --------- Run | Scr Mat Mat Min Exi Min Mat Machines Accessed 9 | . . 1 . 4 . 4 Terminals 5 | . . 1 . . . 4 Fabricators . | . . . . . . . Repair Stations . | . . . . . . . Recycling Units . | . . . . . . . Scanalyzers . | . . . . . . . Garrison Access . | . . . . . . . Total Hacks 71 | . . 2 . 48 . 21 Successful 60 | . . 1 . 48 . 11 Failed 11 | . . 1 . . . 10 Catastrophic 2 | . . . . . . 2 Database Lockouts . | . . . . . . . Manual 12 | . . 1 . . . 11 Terminals 23 | . . 2 . . . 21 Fabricators . | . . . . . . . Repair Stations . | . . . . . . . Recycling Units . | . . . . . . . Scanalyzers . | . . . . . . . Garrison Access . | . . . . . . . Terminal Hacks 55 | . . . . 48 . 7 Record 48 | . . . . 48 . . Terminal Index 1 | . . . . . . 1 Alert Level 1 | . . . . . . 1 Unreport Threat 2 | . . . . . . 2 Locate Traps 1 | . . . . . . 1 Zone Layout 2 | . . . . . . 2 Fabricator Hacks . | . . . . . . . Repair Station Hacks . | . . . . . . . Recycling Unit Hacks . | . . . . . . . Scanalyzer . | . . . . . . . Garrison Access Hacks . | . . . . . . . Unauthorized Hacks 10 | . . 2 . . . 8 Terminals 5 | . . 1 . . . 4 Track 4 | . . 1 . . . 3 Detonate 1 | . . . . . . 1 Fabricators . | . . . . . . . Repair Stations . | . . . . . . . Recycling Units . | . . . . . . . Scanalyzers . | . . . . . . . Garrison Access . | . . . . . . . Data Cores Recovered . | . . . . . . . Used . | . . . . . . . Hacking Detections 5 | . . 1 . . . 4 Full Trace Events . | . . . . . . . Feedback Events . | . . . . . . . Feedback Blocked . | . . . . . . . Robot Schematics Acquired . | . . . . . . . Robots Built . | . . . . . . . Matter . | . . . . . . . Time . | . . . . . . . Total Robot Build Rating . | . . . . . . . Part Schematics Acquired . | . . . . . . . Parts Built . | . . . . . . . Matter . | . . . . . . . Time . | . . . . . . . Total Part Build Rating . | . . . . . . . Parts Repaired . | . . . . . . . Time . | . . . . . . . Parts Recycled . | . . . . . . . Recycled Matter . | . . . . . . . Retrieved Matter . | . . . . . . . Retrieved Components . | . . . . . . . Parts Scanalyzed . | . . . . . . . Part Schematics Acquired . | . . . . . . . Parts Damaged . | . . . . . . . Bothacking | -11 -10 -9 -9 -9 -8 -8 ------------ Run | Scr Mat Mat Min Exi Min Mat Used RIF Installer . | . . . . . . . Robots Hacked . | . . . . . . . Non-combat . | . . . . . . . Combat . | . . . . . . . Robot Hacks Applied . | . . . . . . . Relay Couplers Released . | . . . . . . . Robots Rewired . | . . . . . . . Allies Hacked . | . . . . . . . Hacks Repelled . | . . . . . . . Allies | -11 -10 -9 -9 -9 -8 -8 -------- Run | Scr Mat Mat Min Exi Min Mat Total Allies . | . . . . . . . Largest Group . | . . . . . . . Highest-Rated Group . | . . . . . . . Highest-Rated Ally . | . . . . . . . Total Orders . | . . . . . . . Ally Attacks . | . . . . . . . Total Damage . | . . . . . . . Kills . | . . . . . . . Allies Corrupted . | . . . . . . . Allies Melted . | . . . . . . . Intel | -11 -10 -9 -9 -9 -8 -8 ------- Run | Scr Mat Mat Min Exi Min Mat Robot Analysis Total . | . . . . . . . Derelict Logs Recovered 1 | . . . 1 . . . Drone Launches . | . . . . . . . Drone Recoveries . | . . . . . . . Exploration | -11 -10 -9 -9 -9 -8 -8 ------------- Run | Scr Mat Mat Min Exi Min Mat Turns Passed 2065 | 190 381 204 86 350 673 181 Spaces Moved 1490 | 125 225 105 65 292 432 246 Core 35 | 2 . . . . 20 13 Treads . | . . . . . . . Legs 1196 | 123 225 105 65 292 386 . Wheels . | . . . . . . . Hover . | . . . . . . . Flight 259 | . . . . . 26 233 Fastest Speed 31 | 50 120 120 120 120 34 31 Average Speed 109 | 118 120 137 120 120 125 38 Slowest Speed 350 | 120 120 180 120 120 350 200 Overloaded Moves . | . . . . . . . Propulsion Burnouts . | . . . . . . . Robots Hopped 7 | . . . . . . 7 Cave-ins Triggered . | . . . . . . . Exploration Rate (%) 35 | 5 30 11 19 69 88 29 Regions Visited 6 Branch Regions 3 Pre-discovered Areas 1 | . . . . 1 . . Known Exits Taken 4 | . . 1 1 1 1 . Unknown Exits Taken 2 | 1 1 . . . . . Scrap Searched 1 | . . . . . 1 . Spaces Dug . | . . . . . . . Terrain Destroyed 102 | . . . . . 32 70 Melee . | . . . . . . . Projectile . | . . . . . . . AOE 102 | . . . . . 32 70 Actions | -11 -10 -9 -9 -9 -8 -8 --------- Run | Scr Mat Mat Min Exi Min Mat Total 1770 | 152 284 143 70 291 518 312 Wait 42 | . 11 1 . . 8 22 Move 1471 | 124 224 104 64 291 431 233 Hop 6 | . . . . . . 6 Pick Up 58 | 14 7 8 1 . 16 12 Fast Attach 13 | . 4 4 1 . 2 2 Attach 33 | 7 . 3 . . 8 15 Detach . | . . . . . . . Swap 10 | . 1 2 . . 4 3 Drop 36 | . 10 7 2 . 10 7 Fire 98 | 7 27 14 2 . 36 12 Melee . | . . . . . . . Ram 3 | . . . . . 3 . Kick . | . . . . . . . Crush . | . . . . . . . Escape Stasis . | . . . . . . . Rewire . | . . . . . . . Trap . | . . . . . . . Miscellaneous . | . . . . . . . Route ------- -11/Scrapyard -10/Materials -9/Materials -9/Mines (discovered 2 exits: *Exi / [*Zio]) -9/Exiles -8/Mines -8/Materials History --------- Turn | Location | Event 8 | -11/Scrapyard | Discovered new exit (range 15) 191 | -11/Scrapyard | Entered Materials 311 | -10/Materials | Build established: Mutant 567 | -10/Materials | Discovered new exit (range 5) 572 | -10/Materials | Entered another Materials area 572 | -9/Materials | Evolved 2 slots: Propulsion x1, Utility x1 719 | -9/Materials | Discovered new exit (range 7) 760 | -9/Materials | Met 8R-AWN 775 | -9/Materials | Identified exit to Mines 776 | -9/Materials | Entered Mines 778 | -9/Mines | Followed 8R-AWN into the Mines 812 | -9/Mines | A Derelict revealed a hidden shortcut to a safe place 847 | -9/Mines | Learned Materials trap positions 858 | -9/Mines | Discovered new exit (range 5) 861 | -9/Mines | Identified exit to Exiles 862 | -9/Mines | Entered Exiles 891 | -9/Exiles | Welcomed by 8R-AWN 912 | -9/Exiles | Met EX-HEX 948 | -9/Exiles | Met EX-BIN 1046 | -9/Exiles | Build established: Scavenger-Mutant 1064 | -9/Exiles | Met EX-DEC 1070 | -9/Exiles | Learned location of Zion (-7) 1196 | -9/Exiles | Discovered new exit (range 14) 1210 | -9/Exiles | Identified exit to Mines 1212 | -9/Exiles | Entered Mines 1447 | -8/Mines | Core integrity fell below 50% 1473 | -8/Mines | Lost 8 parts (1p3n1u3w) 1826 | -8/Mines | Discovered new exit (range 15) 1884 | -8/Mines | Identified exit to Materials 1885 | -8/Mines | Entered Materials 1885 | -8/Materials | Evolved 2 slots: Power x1, Propulsion x1 1886 | -8/Materials | Loaded intel: 22 trap records 2025 | -8/Materials | Core integrity fell below 50% 2058 | -8/Materials | Core integrity fell below 20% 2066 | -8/Materials | Self-destructed Last Messages --------------- Found 2 traps in 1 array: 2x Alarm Trap Map updated. 02043_ Lgt. Assault Rifle destroyed. 02046_ ALERT: Hostiles spotted, dispatching reinforcements to Terminal M003. 02047_ Connecting with Terminal... >>Trojan(Detonate) Trojan loaded successfully. Testing... Scanning machine control network... Found 1 applicable machine. RR45J44XBQ: Nuclear Reactor Infected machine control systems. 02054_ Nuclear Reactor detonated. 02054_ G-47 Trooper destroyed. 02055_ U-05 Engineer lays Concrete. 02057_ Flight Unit destroyed. 02060_ Acquired Cesium-ion Thruster. 02062_ Acquired Imp. ECM Suite. Map ----- +----------------------------------------------------+ | ????????????????????????????? | | ????????????????????????????? | | ????????????????????????????? | | ????????????????????????????? | | ????????????????????????????? | | ????????????????????????????? | | ????????????????????????????? | | ????????????????????????????? | | ????????????????????????????? | | ??????????????????????? ???? | | ??????????????????????? ???? | | ??????????????????????? ???? | | ??????????????????????# ???? | | ??????????????????????# #??? | | ??????????????????????# #??? | | ??????????????????????#^^## | | ##########????????????# #### | | # """ #????????????# #### | | # "T" #????????????# # | | # ########?????# # " | | # ! ##! #???### # T | | # ] o ## #### # | | # """ ## """ # ! | | # """ ## """ # = | | # """ ## """ # *% | | # @ ## # % = | | ??###+##### ! # | | ??# #######+## / ## | | ??# # | | ??# #? | | ??#! ########## % #? | | ??## #####???####/# ##? | | ???# ##???# # #?? | | ???# #???# # ### | | ???# #???# """ # # | | ???# #???# """"" # # | | ???#### #???# """"" # # | | ??????#!!##???# """"" # # | | ??????#####???# """ # # | | ??????????????# + / " | | ??????????????#= ! #### " | | ??????????????##########??# " | | ??????????????????????????# | | ??????????????????????????### | | ????????????????????????????? | | ????????????????????????????? | | ????????????????????????????? | | ????????????????????????????? | | | | | +----------------------------------------------------+ Best States ------------- Heat Dissipation 42 Energy Generation 15 Energy Capacity 275 Matter Stores 300 Matter Capacity 300 Sight Range 16 Robot Scan Range 13 Terrain Scan Density 10 Evasion (%) 63 Offensive Hacking 10 Defensive Hacking 10 Item Schematics ----------------- None Robot Schematics ------------------ None Fabricated ------------ Nothing Alien Tech Used ----------------- None Achievements -------------- Librarian root@ Challenges ------------ None Game ------ Seed EnergyImpactRay Manual? 0 Play Time 01:13:16 Cumulative 38.9 hours Start 2020.03.11 @ 05:25:30 End 2020.03.11 @ 11:45:19 Sessions 1 Manual Loads 0 Difficulty Rogue Special Mode None Game No. 24 Rogue 24 Adventurer 0 Explorer 0 Win Type - Total 0 Types 0/0/0/0/0/0/0 Lore% 12 Gallery% 26 Achievement% 13 Wizard Run 0 Options --------- ASCII 0 Keyboard 0 Movement Mouse Keybinds 0 Fullscreen 0 Font 16/SmallcapsGlow Map View 76x50 Tactical HUD 1 Map Filters NONE Filters NONE Steam 1 RUN: 9ad39fcb-9d11-40d5-9c29-22d258481c8c